bitfinex-derivatives/quotes_ETHF0:USTF0_20260128
["timestamp","ask_amount","ask_price","bid_price","bid_amount"]
[1769628682099,0.16584,3019.0,3016.2,0.16599]
[1769628682399,0.16587,3018.5,3016.2,0.16599]
[1769628682604,0.16900089,3019.2,3016.4,0.16598]
[1769628682906,0.16900089,3019.2,3016.8,0.16596]
[1769628683105,0.16900089,3019.2,3016.9,0.16595]
[1769628683307,0.16900089,3019.2,3016.9,0.16849241]
[1769628683508,0.00317089,3019.2,3016.9,0.00254241]
[1769628683902,0.16587,3018.5,3016.9,0.00254241]
[1769628684099,0.00317089,3019.2,3016.9,0.00254241]
[1769628684302,0.16588,3018.3,3015.5,0.16603]
[1769628684500,0.00317089,3019.2,3015.3,3.318]
[1769628684501,0.16588,3018.2,3015.3,3.318]
[1769628685199,0.16588,3018.2,3015.8,0.16601]
[1769628685405,0.16588,3018.2,3015.9,0.16601]
[1769628686303,0.00317089,3019.2,3015.3,3.32042171]
[1769628686509,0.16589,3018.1,3015.6,0.16602]
[1769628686703,0.00317089,3019.2,3015.3,0.00242171]
[1769628687006,0.16594,3017.2,3015.3,0.00242171]
[1769628687206,0.1659,3017.9,3015.3,0.00242171]
[1769628687408,0.1659,3017.8,3015.4,0.16603]
[1769628687905,0.1659,3017.8,3015.6,0.16602]
[1769628688105,0.16587,3018.5,3015.3,0.00242171]
[1769628688308,0.16587,3018.5,3016.3,0.16598]
[1769628688508,0.00317089,3019.2,3016.3,0.16598]
[1769628688509,0.16584,3019.0,3016.3,0.16598]
[1769628688710,0.00317089,3019.2,3016.3,0.16598]
[1769628689005,0.16585,3018.8,3016.3,0.16598]
[1769628689208,0.00317089,3019.2,3016.3,0.16598]
[1769628689610,0.16585,3018.9,3016.2,0.16599]
[1769628689810,0.16585,3018.8,3016.3,0.16598]
[1769628690011,0.00317089,3019.2,3015.3,0.00242171]
[1769628690309,0.00317089,3019.2,3016.8,0.16596]
[1769628690510,0.16584,3019.0,3016.8,0.16596]
[1769628691503,0.16585,3018.8,3016.3,3.318]
[1769628691704,0.16585,3018.8,3016.5,0.16597]
[1769628691907,0.16585,3018.8,3016.7,0.16596]
[1769628692112,0.00317089,3019.2,3016.8,0.16596]
[1769628692410,0.16584,3019.0,3016.9,0.16595]
[1769628692804,0.00317089,3019.2,3016.3,3.318]
[1769628692805,0.16585,3018.8,3016.3,3.318]
[1769628693004,0.16585,3018.7,3016.1,3.318]
[1769628693211,0.16585,3018.7,3016.4,0.16598]
[1769628693409,0.16586,3018.6,3016.4,0.16598]
[1769628693604,0.16587,3018.5,3016.4,0.16598]
[1769628694005,0.00317089,3019.2,3015.7,0.16602]
[1769628694502,0.1659,3017.8,3015.3,0.16846171]
[1769628694714,0.16591,3017.7,3015.3,0.16846171]
[1769628695114,0.16591,3017.6,3015.4,0.16603]
[1769628695614,0.16592,3017.4,3015.4,0.16603]
[1769628695811,0.16594,3017.1,3015.3,0.00242171]
[1769628696204,3.331,3018.6,3015.3,0.00242171]
[1769628696709,0.16595,3016.9,3015.3,0.00242171]
[1769628696910,0.16847251,3016.9,3015.3,0.00242171]
[1769628697112,0.00252251,3016.9,3015.3,0.00242171]
[1769628697711,0.16597,3016.6,3015.3,0.00242171]
[1769628697913,0.00252251,3016.9,3015.3,0.00242171]
[1769628698712,0.00252251,3016.9,3015.5,0.16603]
[1769628699613,0.16587,3018.4,3015.6,2.11520512]
[1769628699918,2.11520512,3018.9,3015.3,0.16846171]
[1769628700115,0.16592,3017.6,3015.3,0.16846171]
[1769628700617,0.16968093,3017.6,3015.3,0.16846171]
[1769628701013,0.00376093,3017.6,3015.3,0.00242171]
[1769628701220,0.16596,3016.8,3015.3,0.00242171]
[1769628702322,0.00376093,3017.6,3015.3,0.00242171]
[1769628702623,0.16598,3016.5,3014.1,0.16611]
[1769628702813,0.16598,3016.4,3014.1,0.16611]
[1769628703215,0.16598,3016.4,3014.2,0.1661]
[1769628703415,0.16599,3016.3,3014.2,0.00371106]
[1769628703615,5.44620512,3017.1,3014.2,0.00371106]
[1769628703817,0.16601,3016.0,3014.2,0.00371106]
[1769628704309,2.11520512,3016.5,3014.2,0.00371106]
[1769628704512,2.11520512,3016.5,3012.8,0.16617]
[1769628704513,0.16605,3015.1,3012.8,0.16617]
[1769628704917,0.16607,3014.8,3012.4,1.94197318]
[1769628705518,0.00405034,3014.8,3012.4,1.94609089]
[1769628705719,0.1661,3014.2,3012.4,1.94609089]
[1769628706824,0.16615,3013.4,3010.8,0.16629]
[1769628707220,0.16616,3013.1,3009.7,3.32]
[1769628707522,0.16612,3013.9,3010.2,2.11520512]
[1769628707722,0.16614,3013.5,3010.8,2.11520512]
[1769628707913,0.16614,3013.5,3010.8,2.28431896]
[1769628708110,2.11520512,3014.7,3010.8,2.11802896]
[1769628708409,2.11520512,3014.7,3011.2,0.16627]
[1769628708613,0.16611,3014.0,3011.3,0.16626]
[1769628709015,0.00405034,3014.8,3011.6,0.16624]
[1769628709323,0.16611,3014.1,3011.6,0.16624]
[1769628709618,2.11520512,3014.7,3011.6,0.16624]
[1769628710122,0.00405034,3014.8,3011.7,0.16624]
[1769628710333,0.16608,3014.6,3012.0,2.11520512]
[1769628710721,0.00405034,3014.8,3012.6,2.11520512]
[1769628711419,0.00405034,3014.8,3012.5,0.16619]
[1769628711928,0.00405034,3014.8,3011.7,0.16624]
[1769628712517,0.16609,3014.5,3012.0,2.28142512]
[1769628712722,0.00405034,3014.8,3012.3,0.1662]
[1769628712927,0.00405034,3014.8,3012.6,2.11520512]
[1769628713528,0.00405034,3014.8,3012.2,0.16621]
[1769628714227,0.00405034,3014.8,3012.6,2.11520512]
[1769628714425,0.00405034,3014.8,3012.5,0.16619]
[1769628714816,0.00405034,3014.8,3011.7,0.16624]
[1769628715020,0.16612,3013.8,3011.4,3.321]
[1769628715525,2.11925546,3014.8,3011.2,0.16627]
[1769628715526,5.45025546,3014.8,3011.2,0.16627]
[1769628715724,0.16613,3013.8,3011.2,0.16627]
[1769628716216,0.16613,3013.8,3010.8,2.11802896]
[1769628716420,2.11520512,3014.1,3010.8,0.00282384]
[1769628716616,0.16614,3013.5,3010.8,0.16911384]
[1769628716816,2.11520512,3013.5,3010.8,0.00282384]
[1769628717016,0.16621,3012.3,3010.8,0.00282384]
[1769628717222,0.16986982,3012.3,3010.8,0.00282384]
[1769628718230,0.00365982,3012.3,3010.8,0.00282384]
[1769628719034,0.00365982,3012.3,3009.7,2.11520512]
[1769628719218,2.11520512,3010.5,3007.8,0.16645]
[1769628719423,0.16632,3010.2,3007.3,3.322]
[1769628719623,0.16627,3011.2,3007.8,2.11520512]
[1769628719823,3.331,3011.6,3008.3,3.322]
[1769628720219,0.16628,3010.9,3008.4,1.94721008]
[1769628720419,0.16624,3011.6,3008.4,4.0624152]
[1769628720635,2.11520512,3011.9,3008.4,1.94721008]
[1769628720928,0.1663,3010.7,3008.4,1.94721008]
[1769628721234,2.11520512,3011.3,3008.4,1.94721008]
[1769628721827,0.16631,3010.5,3008.4,1.94721008]
[1769628722331,0.16634,3010.0,3008.4,1.94721008]
[1769628722630,2.11520512,3010.6,3008.4,1.94721008]
[1769628722824,2.11520512,3010.3,3008.4,0.75481447]
[1769628723031,0.16644,3008.1,3005.3,2.11520512]
[1769628723324,2.11520512,3008.5,3004.7,2.11520512]
[1769628723522,0.16644,3008.1,3004.8,3.324]
[1769628723728,0.16639,3008.9,3005.9,2.11520512]
[1769628723925,2.11520512,3010.3,3006.5,2.11520512]
[1769628724125,2.11520512,3010.9,3006.5,2.28172512]
[1769628724321,40.8,3011.4,3006.6,3.324]
[1769628724322,0.16638,3009.1,3006.6,3.324]
[1769628724521,0.16638,3009.1,3006.5,2.28172512]
[1769628724720,2.11520512,3009.7,3006.5,0.00298042]
[1769628724933,0.16644,3008.0,3006.5,0.00298042]
[1769628725428,2.11806092,3009.1,3006.5,0.00298042]
[1769628725932,0.16644,3008.1,3006.5,0.00298042]
[1769628726232,0.0028558,3009.1,3006.5,0.00298042]
[1769628726427,2.11806092,3009.1,3006.5,0.00298042]
[1769628726625,0.16643,3008.3,3006.5,0.00298042]
[1769628727023,0.1692358,3009.1,3006.5,0.00298042]
[1769628727223,0.16642,3008.5,3006.5,0.00298042]
[1769628727825,0.16646,3007.8,3006.5,0.00298042]
[1769628728226,0.0028558,3009.1,3006.5,0.00298042]
[1769628728227,0.16641,3008.6,3006.5,0.00298042]
[1769628728629,2.11520512,3009.0,3006.5,0.00298042]
[1769628728829,2.11520512,3007.8,3004.6,3.326]
[1769628729023,2.11520512,3007.8,3004.4,1.94714419]
[1769628729024,2.11520512,3007.2,3004.4,1.94714419]
[1769628729227,0.16654,3006.3,3004.4,1.94714419]
[1769628729432,0.1665,3007.1,3004.4,1.94714419]
[1769628729632,0.1665,3007.1,3004.6,2.11520512]
[1769628729831,0.00415404,3007.1,3004.6,2.11952322]
[1769628730038,0.00415404,3007.1,3005.2,2.11520512]
[1769628730229,0.00415404,3007.1,3005.2,2.28180512]
[1769628730625,0.16645,3007.9,3005.4,0.16658]
[1769628731330,2.11520512,3009.0,3005.3,3.327]
[1769628731535,0.16646,3007.8,3004.8,0.16662]
[1769628731732,0.16990111,3007.8,3005.2,2.28180512]
[1769628732237,0.16990111,3007.8,3005.3,3.49359]
[1769628732438,0.00344111,3007.8,3005.8,2.11520512]
[1769628732734,0.00344111,3007.8,3005.9,0.16656]
[1769628733331,0.00344111,3007.8,3006.3,0.16653]
[1769628733736,0.00344111,3007.8,3006.3,3.49453]
[1769628733938,0.16641,3008.7,3006.4,2.28173512]
[1769628734337,0.16637,3009.4,3007.0,2.11520512]
[1769628734740,0.16637,3009.4,3007.0,2.28170512]
[1769628735039,0.0026459,3009.4,3007.2,0.16649]
[1769628735332,0.0026459,3009.4,3007.9,0.16645]
[1769628735539,0.1663,3010.5,3007.9,0.16645]
[1769628735732,2.11520512,3009.3,3007.0,0.00319932]
[1769628735937,0.16642,3008.5,3007.0,0.00319932]
[1769628736134,2.11520512,3009.2,3007.0,0.00319932]
[1769628736336,2.11520512,3008.6,3005.1,3.328]
[1769628736538,0.16647,3007.5,3005.1,3.328]
[1769628736743,0.16647,3007.5,3004.9,2.11520512]
[1769628736936,0.16647,3007.5,3005.0,3.328]
[1769628737337,0.17024386,3007.5,3005.0,0.0031388]
[1769628737537,0.17024386,3007.5,3005.1,5.371]
[1769628737834,0.17024386,3007.5,3005.0,0.0031388]
[1769628737835,0.16652,3006.6,3005.0,0.0031388]
[1769628738342,0.00377386,3007.5,3005.0,0.0031388]
[1769628739241,0.00377386,3007.5,3005.1,2.04]
[1769628739439,0.00377386,3007.5,3005.6,2.11520512]
[1769628740240,0.17024386,3007.5,3005.7,3.329]
[1769628740841,0.00377386,3007.5,3005.7,3.329]
[1769628741942,0.16648,3007.4,3005.7,3.329]
[1769628742136,0.16649,3007.2,3005.7,3.329]
[1769628742539,0.00377386,3007.5,3005.3,3.329]
[1769628742939,0.16648,3007.3,3005.3,3.329]
[1769628743142,0.00377386,3007.5,3005.3,3.329]
[1769628743342,0.16649,3007.2,3005.3,3.329]
[1769628743939,0.00377386,3007.5,3005.3,3.49559]
[1769628744247,0.00377386,3007.5,3005.8,0.16656]
[1769628745448,0.00377386,3007.5,3005.9,5.367]
[1769628745652,0.16642,3008.4,3006.2,0.16654]
[1769628745951,0.16642,3008.4,3006.3,3.329]
[1769628746254,3.331,3009.4,3005.6,2.11520512]
[1769628746550,0.16643,3008.2,3005.7,3.329]
[1769628746954,0.1664,3008.9,3006.5,0.16652]
[1769628747341,0.00247841,3009.4,3005.8,0.16656]
[1769628747651,2.11520512,3009.0,3005.9,0.16656]
[1769628747845,0.16643,3008.3,3006.0,5.53355]
[1769628748243,0.16643,3008.3,3006.1,0.16655]
[1769628748439,0.16643,3008.3,3006.2,0.16654]
[1769628748645,0.16639,3009.0,3006.4,0.16653]
[1769628748839,2.11520512,3008.2,3005.0,0.1697488]
[1769628749050,0.16647,3007.6,3005.1,3.329]
[1769628749244,0.16647,3007.6,3005.3,0.16659]
[1769628749445,2.11520512,3008.2,3005.1,5.367]
[1769628749644,0.16647,3007.5,3005.1,3.329]
[1769628749842,0.16648,3007.4,3005.1,5.366]
[1769628750046,2.11520512,3008.2,3005.1,3.329]
[1769628750247,0.1665,3007.0,3005.1,3.329]
[1769628750450,0.00403348,3007.0,3005.1,3.329]
[1769628750654,0.16651,3006.8,3005.1,3.329]
[1769628751159,0.16654,3006.3,3005.0,0.0031388]
[1769628751653,0.16652,3006.7,3005.0,0.0031388]
[1769628751851,0.00403348,3007.0,3005.0,0.0031388]
[1769628752052,0.16654,3006.2,3005.0,0.0031388]
[1769628753249,0.16651,3006.9,3005.0,0.0031388]
[1769628753650,0.00403348,3007.0,3005.0,0.0031388]
[1769628753853,0.17053348,3007.0,3005.0,0.0031388]
[1769628754155,0.00403348,3007.0,3005.0,3.3331388]
[1769628754359,0.16642,3008.5,3005.3,2.11520512]
[1769628754560,0.16642,3008.5,3005.7,0.16657]
[1769628754751,0.16642,3008.5,3005.3,2.11520512]
[1769628755059,2.11520512,3009.4,3006.0,0.16655]
[1769628755250,0.16644,3008.1,3006.1,3.33]
[1769628755450,0.16644,3008.1,3005.7,0.16657]
[1769628755651,2.11520512,3008.8,3005.7,0.16657]
[1769628755952,0.16645,3008.0,3005.8,3.33]
[1769628756149,5.44620512,3008.8,3005.0,0.1697488]
[1769628756360,0.16648,3007.4,3005.0,0.1697488]
[1769628756561,0.16648,3007.4,3005.1,3.33]
[1769628757153,0.16648,3007.4,3005.1,3.4966]
[1769628757358,0.16648,3007.4,3005.2,0.1666]
[1769628758052,2.11520512,3007.6,3005.0,0.0031388]
[1769628758557,0.1665,3007.1,3005.0,0.0031388]
[1769628758756,0.16976596,3007.1,3005.0,0.0031388]
[1769628759054,0.00326596,3007.1,3005.0,0.0031388]
[1769628759453,0.16656,3005.9,3005.0,0.0031388]
[1769628760054,0.16652,3006.6,3005.0,0.0031388]
[1769628760262,0.16653,3006.5,3005.0,0.0031388]
[1769628760756,0.00326596,3007.1,3005.0,0.0031388]
[1769628761161,0.16975596,3007.1,3005.0,0.1697488]
[1769628761356,0.16975596,3007.1,3005.1,3.33]
[1769628761552,0.1665,3007.0,3005.0,0.0031388]
[1769628762049,0.1665,3007.0,3005.0,3.3331388]
[1769628762260,0.00326596,3007.1,3005.1,0.1666]
[1769628762755,0.16641,3008.7,3005.0,3.3331388]
[1769628763056,0.16642,3008.5,3006.0,0.16655]
[1769628763558,0.05788832,3009.7,3006.0,0.16655]
[1769628763859,0.16645,3007.9,3005.9,3.33]
[1769628764061,0.16647,3007.5,3005.5,3.33]
[1769628764360,3.331,3009.6,3005.1,0.1666]
[1769628764562,3.331,3009.0,3005.0,0.0031388]
[1769628764756,0.1665,3007.0,3005.0,0.0031388]
[1769628764957,0.16968742,3007.0,3005.0,0.0031388]
[1769628766569,0.00318742,3007.0,3005.0,0.1697488]
[1769628766767,0.00318742,3007.0,3005.0,0.0031388]
[1769628766964,0.16651,3006.8,3005.0,0.0031388]
[1769628767368,0.16652,3006.7,3005.0,0.0031388]
[1769628767969,0.00318742,3007.0,3005.0,0.0031388]
[1769628768368,0.00318742,3007.0,3005.1,0.1666]
[1769628768870,0.00318742,3007.0,3005.0,0.0031388]
[1769628769570,0.00318742,3007.0,3005.2,0.1666]
[1769628769764,0.16646,3007.8,3005.7,0.16657]
[1769628769973,0.16642,3008.5,3006.0,0.16655]
[1769628770269,12.05884201,3010.1,3006.0,0.16655]
[1769628770866,0.06105339,3009.7,3006.0,0.16655]
[1769628771067,0.16643,3008.3,3006.0,0.16655]
[1769628771383,0.16643,3008.2,3006.0,0.16655]
[1769628771567,0.06105339,3009.7,3006.0,0.16655]
[1769628771871,0.16643,3008.4,3006.0,0.16655]
[1769628772063,0.16643,3008.4,3006.1,0.16654]
[1769628772473,0.16644,3008.1,3005.9,3.33]
[1769628772679,0.16644,3008.1,3005.8,0.16656]
[1769628772880,0.1664,3008.8,3005.9,3.33]
[1769628773075,0.16641,3008.6,3006.5,0.16652]
[1769628773283,0.16642,3008.4,3006.0,0.16655]
[1769628773582,0.16642,3008.4,3006.3,0.16653]
[1769628774069,0.16638,3009.1,3005.9,3.33]
[1769628774470,0.16638,3009.1,3006.7,0.16651]
[1769628774879,0.16638,3009.1,3005.9,3.33]
[1769628775179,0.00316507,3009.7,3005.9,3.33]
[1769628775379,0.00316507,3009.7,3006.1,9.81720533]
[1769628775776,0.00316507,3009.7,3007.8,0.16645]
[1769628776076,0.00316507,3009.7,3007.8,0.00404819]
[1769628776474,0.16628,3011.0,3008.5,0.16641]
[1769628776675,0.16628,3011.0,3008.6,3.49641]
[1769628777478,0.17050286,3011.0,3008.6,0.16641]
[1769628777682,0.17050286,3011.0,3008.7,3.4964]
[1769628777874,0.00422286,3011.0,3008.9,0.16639]
[1769628779483,0.00422286,3011.0,3008.7,3.33]
[1769628779782,0.00422286,3011.0,3009.3,0.16637]
[1769628780078,2.0,3012.4,3009.8,0.16634]
[1769628780485,0.16621,3012.3,3009.9,3.329]
[1769628781087,0.00285859,3012.3,3010.1,0.16633]
[1769628781377,0.00285859,3012.3,3010.1,0.16873246]
[1769628781585,0.00285859,3012.3,3010.3,0.16631]
[1769628781982,0.00285859,3012.3,3010.1,0.00240246]
[1769628782881,0.00285859,3012.3,3010.2,3.328]
[1769628783081,0.00285859,3012.3,3010.1,0.00240246]
[1769628783576,0.00285859,3012.3,3010.2,3.328]
[1769628784482,0.00285859,3012.3,3010.3,0.16631]
[1769628785885,0.00285859,3012.3,3010.2,3.328]
[1769628786381,0.00285859,3012.3,3010.4,0.16631]
[1769628787184,0.00285859,3012.3,3010.1,3.32940246]
[1769628788488,0.00285859,3012.3,3010.4,0.16631]
[1769628788989,0.00285859,3012.3,3010.5,3.326]
[1769628789691,0.00285859,3012.3,3010.1,0.00240246]
[1769628790384,0.16622,3012.1,3010.1,0.00240246]
[1769628790591,0.00285859,3012.3,3010.1,0.00240246]
[1769628790783,0.00285859,3012.3,3010.3,0.16631]
[1769628791179,0.00285859,3012.3,3010.2,3.326]
[1769628791180,0.00285859,3012.3,3010.1,0.00240246]
[1769628791383,0.16624,3011.7,3010.1,0.00240246]
[1769628791582,0.00285859,3012.3,3010.1,0.00240246]
[1769628792993,0.00285859,3012.3,3008.1,3.326]
[1769628792994,0.16629,3010.9,3008.1,3.326]
[1769628793187,0.16629,3010.9,3008.6,0.16641]
[1769628793892,0.00285859,3012.3,3009.3,0.16637]
[1769628794089,0.00285859,3012.3,3008.6,0.00354864]
[1769628794291,0.00285859,3012.3,3009.7,0.16635]
[1769628794491,0.00285859,3012.3,3008.6,0.00354864]
[1769628794686,0.00285859,3012.3,3009.9,0.16634]
[1769628794891,0.16622,3012.1,3009.9,3.49234]
[1769628795083,0.00285859,3012.3,3009.1,0.16638]
[1769628795283,0.16623,3011.8,3009.3,0.16637]
[1769628795490,0.16625,3011.5,3008.7,0.1664]
[1769628795788,0.16624,3011.7,3009.0,0.16639]
[1769628795995,0.16624,3011.7,3009.1,3.326]
[1769628796191,0.16624,3011.6,3009.1,3.49238]
[1769628796387,0.16624,3011.6,3008.6,0.00354864]
[1769628796388,0.00285859,3012.3,3008.6,0.00354864]
[1769628796602,0.16625,3011.6,3008.7,3.326]
[1769628796797,0.16625,3011.6,3008.9,0.16639]
[1769628797200,0.16625,3011.6,3009.0,0.16639]
[1769628797392,0.00285859,3012.3,3009.0,0.16639]
[1769628797598,0.16626,3011.3,3008.7,3.4924]
[1769628797799,0.16628,3011.1,3008.7,3.4924]
[1769628798000,0.16627,3011.2,3008.6,0.00354864]
[1769628798596,0.00285859,3012.3,3009.1,0.16638]
[1769628798799,0.16626,3011.4,3009.1,0.16638]
[1769628799600,0.00285859,3012.3,3008.6,0.00354864]
[1769628799799,0.16628,3011.0,3008.7,3.326]
[1769628800198,0.16628,3011.0,3008.7,3.4924]
[1769628800803,0.16629,3010.8,3008.6,0.00354864]
[1769628801002,0.16629,3010.7,3008.6,0.00354864]
[1769628801200,0.16632,3010.2,3008.6,0.00354864]
[1769628802398,3.331,3011.7,3008.6,0.00354864]
[1769628802704,0.16639,3009.0,3006.5,0.16652]
[1769628802896,0.16639,3009.0,3006.6,3.326]
[1769628803098,0.16639,3009.0,3006.5,0.16652]
[1769628803297,0.16639,3008.9,3006.6,3.326]
[1769628803492,0.1664,3008.8,3006.5,3.49252]
[1769628803706,0.1664,3008.8,3006.5,0.16652]
[1769628803997,0.1705245,3008.8,3006.5,0.16968874]
[1769628804207,0.0041245,3008.8,3006.5,0.00316874]
[1769628804404,0.16645,3008.0,3006.5,0.00316874]
[1769628806305,0.16645,3007.9,3006.5,0.00316874]
[1769628806608,0.16645,3007.9,3004.4,1.94714419]
[1769628806609,0.0041245,3008.8,3004.7,0.16662]
[1769628806805,0.16649,3007.2,3004.7,0.16662]
[1769628807309,40.8,3008.7,3004.5,3.327]
[1769628807501,0.16646,3007.8,3004.9,0.16661]
[1769628807902,0.16646,3007.8,3004.5,3.33063713]
[1769628808607,0.16646,3007.8,3005.2,0.1666]
[1769628809005,0.16642,3008.5,3005.3,0.16659]
[1769628809203,0.0041245,3008.8,3004.5,0.00363713]
[1769628809398,0.0041245,3008.8,3004.9,3.328]
[1769628809597,0.0041245,3008.8,3004.7,3.328]
[1769628809598,0.16649,3007.3,3004.7,3.328]
[1769628809804,0.1665,3007.0,3004.5,3.33163713]
[1769628810104,0.0041245,3008.8,3005.0,0.16661]
[1769628810308,0.16644,3008.0,3005.1,0.1666]
[1769628811000,0.16645,3007.9,3005.1,0.1666]
[1769628811314,0.16646,3007.8,3005.1,0.1666]
[1769628811619,0.0041245,3008.8,3005.1,0.1666]
[1769628812203,0.16644,3008.0,3004.9,3.328]
[1769628812805,0.16641,3008.7,3005.8,0.16656]
[1769628813011,0.16641,3008.7,3006.0,0.16655]
[1769628813310,0.16642,3008.5,3006.0,0.16655]
[1769628814210,0.16642,3008.4,3005.2,0.1666]
[1769628814513,0.0041245,3008.8,3005.3,3.49559]
[1769628814514,0.16643,3008.3,3005.3,3.49559]
[1769628814813,0.16645,3007.9,3005.3,0.16659]
[1769628815007,0.16645,3007.9,3005.3,3.49559]
[1769628815310,0.16644,3008.1,3005.4,0.16658]
[1769628815512,0.16644,3008.1,3005.6,0.16658]
[1769628815712,0.16644,3008.1,3005.7,0.16657]
[1769628815908,0.1705245,3008.8,3006.0,0.16655]
[1769628816111,0.0041245,3008.8,3006.1,0.16655]
[1769628816303,0.0041245,3008.8,3005.3,0.16659]
[1769628816508,0.0041245,3008.8,3006.4,0.16653]
[1769628816710,0.0041245,3008.8,3005.7,0.16657]
[1769628816905,0.0041245,3008.8,3005.7,3.49557]
[1769628817107,0.16644,3008.2,3005.7,3.49557]
[1769628817309,0.16644,3008.2,3005.8,0.16656]
[1769628818212,0.16644,3008.2,3005.9,0.16656]
[1769628818419,0.0041245,3008.8,3006.2,0.16654]
[1769628818611,0.0041245,3008.8,3006.3,0.16654]
[1769628819614,0.0041245,3008.8,3006.2,2.12570118]
[1769628820222,0.0041245,3008.8,3006.1,0.16655]
[1769628820616,0.16642,3008.5,3006.2,0.16654]
[1769628821711,0.0041245,3008.8,3006.5,0.16652]
[1769628821915,0.0041245,3008.8,3006.0,3.329]
[1769628822123,0.16642,3008.5,3006.0,3.329]
[1769628822627,0.16644,3008.2,3005.9,0.16656]
[1769628822814,0.0041245,3008.8,3006.1,0.16655]
[1769628823222,0.16641,3008.7,3006.2,0.16654]
[1769628823520,0.16641,3008.6,3006.2,0.16654]
[1769628824029,1.59518491,3008.3,3006.2,0.16654]
[1769628824529,0.16642,3008.5,3006.2,0.16654]
[1769628825323,1.59930941,3008.8,3006.2,0.16654]
[1769628825324,1.59518491,3008.3,3006.2,0.16654]
[1769628826026,0.16642,3008.4,3006.3,0.16654]
[1769628826430,1.59518491,3007.7,3005.6,3.49557]
[1769628826630,0.16647,3007.5,3005.6,3.329]
[1769628826937,0.16645,3007.8,3005.6,3.329]
[1769628827237,0.1665,3007.1,3004.8,3.49562]
[1769628827439,0.1665,3006.9,3004.8,3.49562]
[1769628828433,0.16647,3007.6,3005.3,1.59518491]
[1769628828935,1.59518491,3007.2,3004.8,3.329]
[1769628829141,1.59518491,3007.2,3004.9,0.16661]
[1769628829337,1.76167491,3007.2,3004.9,0.16661]
[1769628829540,0.16649,3007.2,3005.1,0.1666]
[1769628829927,0.16651,3006.8,3004.5,0.00363713]
[1769628830437,0.16651,3006.8,3004.5,0.17027713]
[1769628830838,1.59518491,3006.7,3004.5,0.17027713]
[1769628831239,0.16652,3006.6,3004.5,0.17027713]
[1769628831439,0.00328187,3006.6,3004.6,0.16663]
[1769628831840,0.00328187,3006.6,3004.5,0.00363713]
[1769628832039,0.16654,3006.3,3004.5,0.00363713]
[1769628832345,0.00328187,3006.6,3004.5,0.00363713]
[1769628832641,0.00328187,3006.6,3004.6,0.16663]
[1769628832948,0.00328187,3006.6,3004.9,0.16661]
[1769628833635,0.00328187,3006.6,3004.8,1.59518491]
[1769628833837,0.00328187,3006.6,3005.2,0.16659]
[1769628834441,0.00328187,3006.6,3004.5,0.00363713]
[1769628834442,0.00328187,3006.6,3004.5,0.17026713]
[1769628834742,0.00328187,3006.6,3004.7,0.16663]
[1769628835039,0.00328187,3006.6,3004.5,0.00363713]
[1769628835040,0.00328187,3006.6,3004.8,1.59518491]
[1769628835548,0.00328187,3006.6,3005.3,0.16659]
[1769628836144,0.16646,3007.7,3005.6,0.16658]
[1769628836346,1.59518491,3008.2,3005.7,0.16657]
[1769628836647,1.76161491,3008.2,3005.7,0.16657]
[1769628836844,1.59518491,3007.7,3005.7,0.16657]
[1769628837043,1.59518491,3008.2,3005.7,0.16657]
[1769628837241,1.5979086,3008.2,3005.7,0.16657]
[1769628837448,1.76164491,3007.7,3005.7,0.16657]
[1769628837646,1.59518491,3007.7,3004.8,1.59518491]
[1769628837846,1.59518491,3007.2,3005.1,0.1666]
[1769628838042,1.76167491,3007.2,3005.1,0.1666]
[1769628838250,0.16651,3006.9,3004.5,0.00363713]
[1769628838449,0.16651,3006.9,3004.6,0.16663]
[1769628838751,0.16651,3006.9,3004.7,0.16662]
[1769628838941,1.59518491,3006.7,3004.7,0.16662]
[1769628839136,0.16651,3006.8,3004.7,0.16662]
[1769628839749,0.16648,3007.3,3004.8,1.76180491]
[1769628839950,0.1665,3007.1,3004.8,1.76180491]
[1769628840447,0.1665,3007.0,3004.8,0.16662]
[1769628840645,1.59518491,3007.7,3004.8,1.59518491]
[1769628840853,0.16648,3007.5,3005.3,1.59518491]
[1769628841154,0.16648,3007.5,3005.4,0.16658]
[1769628841940,1.59518491,3007.7,3005.5,0.16658]
[1769628842144,0.16647,3007.5,3005.2,3.33]
[1769628842347,0.16647,3007.5,3005.4,0.16658]
[1769628843054,0.16648,3007.4,3004.8,1.59518491]
[1769628843251,0.16648,3007.4,3004.9,5.286]
[1769628843450,0.16648,3007.4,3005.1,0.1666]
[1769628843652,0.16648,3007.4,3005.2,0.1666]
[1769628844052,0.16649,3007.1,3004.8,3.49662]
[1769628844247,1.76164491,3007.7,3005.2,0.1666]
[1769628844447,0.16648,3007.4,3005.2,0.1666]
[1769628844955,0.16649,3007.1,3004.8,4.92518491]
[1769628845356,0.16649,3007.1,3004.9,0.16661]
[1769628846162,0.16651,3006.9,3004.5,3.33363713]
[1769628846356,1.59518491,3006.7,3004.5,0.00363713]
[1769628846562,1.59518491,3006.7,3004.5,0.17027713]
[1769628847263,0.16653,3006.5,3004.5,0.00363713]
[1769628847560,0.16654,3006.2,3004.5,0.00363713]
[1769628847758,1.59518491,3006.7,3004.5,0.00363713]
[1769628847962,0.16651,3006.8,3004.5,0.00363713]
[1769628848353,0.16648,3007.4,3005.0,0.16661]
[1769628848554,0.16648,3007.3,3004.8,1.59518491]
[1769628849256,1.76167491,3007.2,3004.8,1.76180491]
[1769628849458,1.76167491,3007.2,3005.1,0.1666]
[1769628849459,0.16649,3007.2,3005.1,0.1666]
[1769628850456,1.59518491,3007.7,3005.3,0.16659]
[1769628850761,1.76164491,3007.7,3005.3,0.16659]
[1769628850951,0.16646,3007.7,3005.5,0.16658]
[1769628851150,0.16646,3007.7,3005.3,1.59518491]
[1769628851557,0.16646,3007.7,3005.0,2.11961]
[1769628851558,0.16647,3007.5,3005.0,2.11961]
[1769628851752,0.16647,3007.5,3005.2,0.1666]
[1769628852261,0.16647,3007.5,3005.6,1.59518491]
[1769628852460,0.00272369,3008.2,3006.4,0.16653]